fUST/lending_fUST_20260224
["ID","MTS","AMOUNT","RATE_DAILY","PERIOD"]
[406519544,1771902638497,-500.0,0.00013273,2]
[406519546,1771902638506,-500.0,0.00013273,2]
[406519548,1771902638516,-327.89584845,0.00013273,2]
[406519550,1771902638525,-500.0,0.00013273,2]
[406519552,1771902638534,-500.0,0.00013273,2]
[406519554,1771902638544,-500.0,0.00013273,2]
[406519555,1771902638553,-500.0,0.00013273,2]
[406519557,1771902638562,-500.0,0.00013273,2]
[406519559,1771902638572,-500.0,0.00013273,2]
[406519561,1771902638581,-507.37515151,0.00013273,2]
[406519563,1771902638590,-295.85975931,0.00013273,2]
[406519565,1771902638602,-204.14024069,0.00013273,2]
[406519566,1771902638611,-526.82171063,0.00013273,2]
[406519567,1771902638621,-500.0,0.00013273,2]
[406519569,1771902638630,-500.0,0.00013273,2]
[406519571,1771902638640,-500.0,0.00013273,2]
[406519573,1771902638648,-500.0,0.00013273,2]
[406519575,1771902638658,-500.0,0.00013273,2]
[406519577,1771902638668,-172.66301042,0.00013273,2]
[406519578,1771902638677,-262.98222459,0.00013273,2]
[406519579,1771902638688,-160.30330641,0.00013273,2]
[406519580,1771902638698,-500.0,0.00013273,2]
[406519581,1771902638707,-500.0,0.00013273,2]
[406519582,1771902638718,-500.0,0.00013273,2]
[406519583,1771902638727,-500.0,0.00013273,2]
[406519584,1771902638736,-233.86274584,0.00013273,2]
[406519585,1771902638745,-500.0,0.00013273,2]
[406519586,1771902638755,-500.0,0.00013273,2]
[406519587,1771902638848,-500.0,0.00013273,2]
[406519588,1771902638860,-508.228935,0.00013486,2]
[406519589,1771902638870,-189.34,0.00013599,2]
[406519590,1771902638880,-150.0,0.00013673,2]
[406519591,1771902638890,-300.0,0.00013673,2]
[406519592,1771902638899,-278.25616691,0.00013698,2]
[406519593,1771902638909,-500.0,0.00013698,2]
[406519594,1771902638918,-500.0,0.00013698,2]
[406519595,1771902638929,-500.0,0.00013698,2]
[406519596,1771902638938,-500.0,0.00013698,2]
[406519597,1771902638948,-500.0,0.00013698,2]
[406519598,1771902638957,-150.82957733,0.00013698,2]
[406519599,1771902638967,-500.0,0.00013698,2]
[406519600,1771902638977,-500.0,0.00013698,2]
[406519601,1771902638986,-500.0,0.00013698,2]
[406519602,1771902638996,-505.44997887,0.00013698,2]
[406519603,1771902639006,-500.0,0.00013698,2]
[406519604,1771902639015,-500.0,0.00013698,2]
[406519605,1771902639025,-500.0,0.00013698,2]
[406519606,1771902639035,-1869.5534,0.00013699,2]
[406519607,1771902639044,-1000.0,0.00013699,2]
[406519608,1771902639054,-500.0,0.00013699,2]
[406519609,1771902639065,-500.0,0.00013699,2]
[406519610,1771902639079,-496.43080713,0.00013699,2]
[406519611,1771902639088,-161.29259037,0.00013699,2]
[406519612,1771902639098,-500.0,0.00013699,2]
[406519613,1771902639109,-503.11978332,0.00013699,2]
[406519614,1771902639119,-500.0,0.00013699,2]
[406519615,1771902639128,-500.0,0.00013699,2]
[406519616,1771902639138,-569.51557829,0.00013699,2]
[406519617,1771902639150,-500.0,0.00013699,2]
[406519618,1771902639163,-300.82790262,0.00013699,2]
[406519619,1771902639173,-500.0,0.00013699,2]
[406519620,1771902639183,-194.54041969,0.00013699,2]
[406519621,1771902639192,-500.0,0.00013699,2]
[406519622,1771902639201,-500.41265263,0.00013699,2]
[406519623,1771902639211,-500.0,0.00013699,2]
[406519624,1771902639222,-501.27511018,0.00013699,2]
[406519625,1771902639233,-160.87495337,0.00013699,2]
[406519626,1771902639243,-500.0,0.00013699,2]
[406519627,1771902639252,-500.0,0.00013699,2]
[406519628,1771902639262,-500.0,0.00013699,2]
[406519629,1771902639271,-500.0,0.00013699,2]
[406519630,1771902639281,-629.81696642,0.00013699,2]
[406519631,1771902639292,-501.0058008,0.00013699,2]
[406519632,1771902639301,-500.0,0.00013699,2]
[406519633,1771902639310,-500.0,0.00013699,2]
[406519634,1771902639319,-500.0,0.00013699,2]
[406519635,1771902639329,-500.0,0.00013699,2]
[406519636,1771902639341,-505.03803354,0.00013699,2]
[406519637,1771902639350,-592.3909772,0.00013699,2]
[406519638,1771902639360,-500.0,0.00013699,2]
[406519639,1771902639369,-500.0,0.00013699,2]
[406519640,1771902639379,-500.82195521,0.00013699,2]
[406519641,1771902639389,-500.0,0.00013699,2]
[406519642,1771902639399,-500.0,0.00013699,2]
[406519643,1771902639408,-500.0,0.00013699,2]
[406519644,1771902639417,-500.0,0.00013699,2]
[406519645,1771902639427,-500.0,0.00013699,2]
[406519646,1771902639436,-502.45640259,0.00013699,2]
[406519647,1771902639445,-500.0,0.00013699,2]
[406519648,1771902639455,-500.0,0.00013699,2]
[406519649,1771902639464,-500.0,0.00013699,2]
[406519650,1771902639473,-375.3541284,0.00013699,2]
[406519651,1771902639482,-506.15914184,0.00013699,2]
[406519652,1771902639491,-500.0,0.00013699,2]
[406519653,1771902639500,-503.76987086,0.00013699,2]
[406519654,1771902639510,-502.10243495,0.00013699,2]
[406519655,1771902639519,-500.0,0.00013699,2]
[406519656,1771902639528,-500.0,0.00013699,2]
[406519657,1771902639539,-538.56740733,0.00013699,2]
[406519658,1771902639548,-500.0,0.00013699,2]
[406519659,1771902639558,-500.0,0.00013699,2]
[406519660,1771902639567,-545.808988,0.00013699,2]
[406519661,1771902639577,-501.59190687,0.00013699,2]
[406519662,1771902639586,-501.00303386,0.00013699,2]
[406519663,1771902639595,-500.0,0.00013699,2]
[406519664,1771902639604,-500.0,0.00013699,2]
[406519665,1771902639614,-500.0,0.00013699,2]
[406519666,1771902639623,-500.0,0.00013699,2]
[406519667,1771902639632,-500.0,0.00013699,2]
[406519669,1771902639645,-500.0,0.00013699,2]
[406519670,1771902639655,-151.0,0.00013699,2]
[406519671,1771902639664,-151.0,0.00013699,2]
[406519672,1771902639674,-151.0,0.00013699,2]
[406519673,1771902639684,-151.0,0.00013699,2]
[406519674,1771902639694,-500.0,0.0001382,2]
[406519675,1771902639703,-426.44854476,0.0001382,2]
[406519676,1771902639712,-513.46050645,0.0001382,2]
[406519677,1771902639722,-500.0,0.0001382,2]
[406519678,1771902639732,-1000.0,0.00013821,2]
[406519679,1771902639742,-1000.0,0.00013821,2]
[406519680,1771902639751,-1000.0,0.00013821,2]
[406519681,1771902639761,-1000.0,0.00013821,2]
[406519682,1771902639770,-1000.0,0.00013821,2]
[406519683,1771902639779,-1000.0,0.00013821,2]
[406519684,1771902639789,-1000.0,0.00013821,2]
[406519686,1771902639799,-1000.0,0.00013821,2]
[406519687,1771902639808,-899.9098568,0.00013821,2]
[406519689,1771902639817,-1000.0,0.00013821,2]
[406519690,1771902639826,-778.61046944,0.00013821,2]
[406519691,1771902639837,-1000.0,0.00013821,2]
[406519692,1771902639846,-1000.0,0.00013821,2]
[406519693,1771902639855,-1005.76665804,0.00013821,2]
[406519694,1771902639865,-1000.0,0.00013821,2]
[406519695,1771902639874,-1000.0,0.00013821,2]
[406519696,1771902639884,-1000.0,0.00013821,2]
[406519697,1771902639896,-1000.0,0.00013821,2]
[406519698,1771902639905,-1000.0,0.00013821,2]
[406519699,1771902639915,-1000.0,0.00013821,2]
[406519700,1771902639924,-281.3270787,0.00013821,2]
[406519701,1771902639933,-1008.03343224,0.00013821,2]
[406519702,1771902639943,-624.97752296,0.00013821,2]
[406519703,1771902639952,-1000.0,0.00013821,2]
[406519704,1771902639961,-502.89431935,0.00013821,2]
[406519705,1771902639971,-1000.0,0.00013821,2]
[406519706,1771902639980,-1000.0,0.00013821,2]
[406519707,1771902639989,-353.87941412,0.00013821,2]
[406519708,1771902639998,-210.41118423,0.00013821,2]
[406519709,1771902640007,-1000.0,0.00013821,2]
[406519711,1771902640016,-500.84587576,0.00013821,2]
[406519713,1771902640025,-407.64184783,0.00013821,2]
[406519714,1771902640035,-1000.0,0.00013821,2]
[406519715,1771902640045,-1000.0,0.00013821,2]
[406519716,1771902640054,-500.4517366,0.00013821,2]
[406519717,1771902640064,-1000.0,0.00013821,2]
[406519719,1771902640076,-505.99507218,0.00013821,2]
[406519720,1771902640085,-1000.0,0.00013821,2]
[406519721,1771902640094,-1000.0,0.00013821,2]
[406519722,1771902640103,-1000.0,0.00013821,2]
[406519723,1771902640113,-1000.0,0.00013821,2]
[406519724,1771902640122,-1000.0,0.00013821,2]
[406519725,1771902640131,-151.0,0.00013821,2]
[406519726,1771902640141,-151.0,0.00013821,2]
[406519727,1771902640151,-508.228935,0.0001399,2]
[406519728,1771902640161,-301.76877493,0.00014221,2]
[406519729,1771902640171,-600.0,0.00014221,2]
[406519730,1771902640180,-174.66982224,0.00014246,2]
[406519731,1771902640189,-500.0,0.00014246,2]
[406519732,1771902640199,-480.45370747,0.00014246,2]
[406519733,1771902640208,-1000.94357506,0.00014247,2]
[406519734,1771902640216,-1000.0,0.00014247,2]
[406519735,1771902640225,-1000.0,0.00014247,2]
[406519736,1771902640234,-1000.0,0.00014247,2]
[406519737,1771902640243,-151.70703937,0.00014247,2]
[406519738,1771902640252,-1000.0,0.00014247,2]
[406519739,1771902640261,-1000.0,0.00014247,2]
[406519740,1771902640270,-1000.0,0.00014247,2]
[406519741,1771902640279,-1121.55265263,0.00014247,2]
[406519742,1771902640287,-777.07215504,0.00014247,2]
[406519743,1771902640296,-1000.0,0.00014247,2]
[406519744,1771902640305,-1000.0,0.00014247,2]
[406519745,1771902640314,-503.60455444,0.00014247,2]
[406519746,1771902640323,-500.88034176,0.00014247,2]
[406519747,1771902640332,-539.45606771,0.00014247,2]
[406519748,1771902640342,-360.91419843,0.00014247,2]
[406519749,1771902640351,-1007.73535729,0.00014247,2]
[406519750,1771902640360,-508.26072337,0.00014247,2]
[406519751,1771902640368,-1000.98665082,0.00014247,2]
[406519752,1771902640377,-1000.0,0.00014247,2]
[406519753,1771902640387,-191.29546939,0.00014247,2]
[406519754,1771902640396,-1002.47694397,0.00014247,2]
[406519755,1771902640405,-1008.54918615,0.00014247,2]
[406519756,1771902640414,-1000.0,0.00014247,2]
[406519757,1771902640424,-199.33514104,0.00014247,2]
[406519758,1771902640433,-502.83751708,0.00014247,2]
[406519759,1771902640443,-1000.0,0.00014247,2]
[406519760,1771902640452,-1000.0,0.00014247,2]
[406519761,1771902640461,-1003.17236989,0.00014247,2]
[406519762,1771902640471,-333.05847892,0.00014247,2]
[406519763,1771902640480,-1000.0,0.00014247,2]
[406519764,1771902640490,-505.80135247,0.00014247,2]
[406519765,1771902640499,-502.95101114,0.00014247,2]
[406519766,1771902640508,-1000.0,0.00014247,2]
[406519767,1771902640517,-1000.0,0.00014247,2]
[406519768,1771902640527,-1001.5216922,0.00014247,2]
[406519769,1771902640536,-502.65558711,0.00014247,2]
[406519770,1771902640545,-1000.0,0.00014247,2]
[406519772,1771902640553,-151.0,0.00014247,2]
[406519773,1771902640562,-151.0,0.00014247,2]
[406519774,1771902640571,-151.0,0.00014247,2]
[406519775,1771902640580,-262.445806,0.00014247,2]
[406519776,1771902640589,-523.47953288,0.00014318,2]
[406519777,1771902640598,-170.156033,0.00014368,2]
[406519778,1771902640607,-500.0,0.00014368,2]
[406519779,1771902640616,-1001.66633844,0.00014368,2]
[406519780,1771902640625,-413.80928703,0.00014368,2]
[406519781,1771902640634,-961.02859815,0.00014368,2]
[406519782,1771902640644,-1000.77568333,0.00014368,2]
[406519783,1771902640653,-1308.89276246,0.00014368,2]
[406519784,1771902640662,-1500.0,0.00014368,2]
[406519785,1771902640671,-1500.0,0.00014368,2]
[406519786,1771902640680,-1500.0,0.00014368,2]
[406519787,1771902640689,-1500.0,0.00014368,2]
[406519788,1771902640698,-1501.71571213,0.00014368,2]
[406519789,1771902640707,-1500.0,0.00014368,2]
[406519790,1771902640716,-1500.0,0.00014368,2]
[406519791,1771902640725,-1500.0,0.00014368,2]
[406519792,1771902640734,-1500.0,0.00014368,2]
[406519793,1771902640744,-1500.0,0.00014368,2]
[406519794,1771902640753,-500.58898421,0.00014368,2]
[406519795,1771902640762,-1477.71205088,0.00014368,2]
[406519796,1771902640771,-1009.09409925,0.00014368,2]
[406519797,1771902640781,-1500.0,0.00014368,2]
[406519798,1771902640869,-500.76028204,0.00014368,2]
[406519799,1771902640879,-1500.0,0.00014368,2]
[406519800,1771902640888,-1500.0,0.00014368,2]
[406519801,1771902640897,-1500.0,0.00014368,2]
[406519802,1771902640906,-1500.0,0.00014368,2]
[406519803,1771902640915,-1500.0,0.00014368,2]
[406519804,1771902640925,-165.92209389,0.00014368,2]
[406519805,1771902640934,-1503.13900474,0.00014368,2]
[406519806,1771902640943,-1003.91992404,0.00014368,2]
[406519807,1771902640952,-1500.0,0.00014368,2]
[406519808,1771902640961,-1152.0,0.00014493,2]
[406519809,1771902640970,-508.228935,0.00014494,2]
[406519810,1771902640979,-900.0,0.00014768,2]
[406519811,1771902640988,-1081.21027369,0.00014795,2]
[406519812,1771902640997,-1500.0,0.00014795,2]
[406519813,1771902641007,-1200.10699781,0.00014795,2]
[406519814,1771902641015,-513.1244134,0.00014795,2]
[406519815,1771902641025,-272.40158272,0.00014795,2]
[406519816,1771902641034,-1405.58312646,0.00014795,2]
[406519817,1771902641043,-1500.0,0.00014795,2]
[406519818,1771902641052,-1081.33771597,0.00014795,2]
[406519819,1771902641061,-418.80995771,0.00014795,2]
[406519820,1771902641073,-555.31039046,0.00014795,2]
[406519821,1771902641083,-613.18994422,0.00014795,2]
[406519822,1771902641092,-512.12205979,0.00014795,2]
[406519823,1771902641102,-1500.0,0.00014795,2]
[406519824,1771902641111,-1500.0,0.00014795,2]
[406519825,1771902641121,-988.86543131,0.00014795,2]
[406519826,1771902641130,-1500.0,0.00014795,2]
[406519827,1771902641140,-500.0,0.00014916,2]
[406519828,1771902641149,-572.92050095,0.00014916,2]
[406519829,1771902641158,-1504.86254457,0.00014916,2]
[406519830,1771902641167,-2009.14533087,0.00014916,2]
[406519831,1771902641176,-507.1612751,0.00014916,2]
[406519832,1771902641185,-2000.0,0.00014916,2]
[406519833,1771902641194,-1387.47508745,0.00014916,2]
[406519834,1771902641203,-503.49206962,0.00014916,2]
[406519835,1771902641212,-1535.93834376,0.00014916,2]
[406519836,1771902641221,-1013.3921837,0.00014916,2]
[406519837,1771902641230,-508.7919259,0.00014916,2]
[406519838,1771902641239,-751.71286677,0.00014916,2]
[406519839,1771902641249,-2000.0,0.00014916,2]
[406519840,1771902641258,-2000.0,0.00014916,2]
[406519841,1771902641267,-1003.04492004,0.00014916,2]
[406519842,1771902641276,-2000.0,0.00014916,2]
[406519843,1771902641286,-2000.0,0.00014916,2]
[406519844,1771902641295,-648.003,0.00015063,2]
[406519845,1771902641304,-1396.723,0.00015063,2]
[406519846,1771902641313,-727.0,0.00015063,2]
[406519847,1771902641322,-155.0,0.00015068,2]
[406519848,1771902641331,-183.839679,0.00015068,2]
[406519849,1771902641340,-632.74384851,0.00015316,2]
[406519850,1771902641349,-456.01298841,0.00015342,2]
[406519851,1771902641357,-1285.9727843,0.00015342,2]
[406519852,1771902641367,-237.38688191,0.00015342,2]
[406519853,1771902641376,-2000.0,0.00015342,2]
[406519854,1771902641385,-2000.0,0.00015342,2]
[406519855,1771902641393,-500.0,0.00015464,2]
[406519856,1771902641403,-2500.0,0.00015464,2]
[406519857,1771902641412,-2500.0,0.00015464,2]
[406519858,1771902641421,-886.78904825,0.00015464,2]
[406519859,1771902641430,-2500.0,0.00015464,2]
[406519860,1771902641439,-2500.0,0.00015464,2]
[406519861,1771902641448,-5056.8339917,0.00015706,2]
[406519862,1771902641457,-2500.0,0.0001589,2]
[406519863,1771902641466,-2500.0,0.0001589,2]
[406519864,1771902641475,-552.0,0.00015942,2]
[406519865,1771902641484,-500.0,0.00016012,2]
[406519866,1771902641493,-3000.0,0.00016012,2]
[406519867,1771902641502,-3000.0,0.00016012,2]
[406519868,1771902641511,-3000.0,0.00016012,2]
[406519869,1771902641520,-3000.0,0.00016012,2]
[406519870,1771902641529,-3225.00913569,0.00016091,2]
[406519871,1771902641538,-209.9237,0.00016117,120]
[406519872,1771902641547,-156.096459,0.00016438,2]
[406519873,1771902641556,-297.10665449,0.00016438,2]
[406519874,1771902641565,-150.0,0.00016438,2]
[406519875,1771902641574,-165.24713283,0.00016438,2]
[406519876,1771902641583,-3000.0,0.00016438,2]
[406519877,1771902641593,-3000.0,0.00016438,2]
[406519878,1771902641602,-500.0,0.0001656,2]
[406519879,1771902641611,-318.50814793,0.0001656,2]
[406519880,1771902641621,-2793.54281503,0.0001656,2]
[406519881,1771902641630,-3500.0,0.0001656,2]
[406519882,1771902641640,-2972.12994267,0.0001656,2]
[406519883,1771902641649,-100000.0,0.00016926,2]
[406519884,1771902641658,-201.64251328,0.00016986,2]
[406519885,1771902641667,-3500.0,0.00016986,2]
[406519886,1771902641676,-3500.0,0.00016986,2]
[406519887,1771902641686,-499.69696988,0.00016989,2]
[406519888,1771902641695,-500.0,0.00017033,2]
[406519889,1771902641704,-11010.4247532,0.00017034,2]
[406519890,1771902641713,-2441.7448292,0.00017034,2]
[406519891,1771902641722,-1163.2295274,0.00017034,2]
[406519892,1771902641732,-151.0,0.00017099,2]
[406519893,1771902641741,-151.0,0.00017099,2]
[406519894,1771902641751,-151.0,0.00017099,2]
[406519895,1771902641760,-151.0,0.00017099,2]
[406519896,1771902641768,-151.0,0.00017099,2]
[406519897,1771902641778,-151.0,0.00017099,2]
[406519898,1771902641787,-151.0,0.00017099,2]
[406519899,1771902641796,-151.0,0.00017099,2]
[406519900,1771902641806,-151.0,0.00017099,2]
[406519901,1771902641815,-151.0,0.00017099,2]
[406519902,1771902641823,-151.0,0.00017099,2]
[406519903,1771902641832,-151.0,0.00017099,2]
[406519904,1771902641841,-151.0,0.00017099,2]
[406519905,1771902641850,-151.0,0.00017099,2]
[406519906,1771902641859,-151.0,0.00017099,2]
[406519907,1771902641868,-151.0,0.00017099,2]
[406519908,1771902641876,-151.0,0.00017099,2]
[406519909,1771902641885,-151.0,0.00017099,2]
[406519910,1771902641895,-151.0,0.00017099,2]
[406519911,1771902641903,-154.04416148,0.00017099,2]
[406519912,1771902641912,-1877.6048,0.000171,2]
[406519913,1771902641922,-447.3113357,0.00017105,2]
[406519914,1771902641931,-3488.65898019,0.00017108,2]
[406519915,1771902641939,-500.0,0.00017249,2]
[406519916,1771902641948,-1807.68268689,0.00017534,2]
[406519917,1771902641957,-3775.32211574,0.00017534,2]
[406519918,1771902641967,-777.53103354,0.0001764,2]
[406519919,1771902641977,-286.86800586,0.00017692,2]
[406519920,1771902641986,-151.77618879,0.00017808,2]
[406519921,1771902641995,-189.978,0.000179,2]
[406519922,1771902642004,-500.0,0.00017999,2]
[406519923,1771902642013,-500.0,0.00017999,2]
[406519924,1771902642023,-500.0,0.00017999,2]
[406519925,1771902642032,-500.0,0.00017999,2]
[406519926,1771902642041,-500.0,0.00017999,2]
[406519927,1771902642050,-500.0,0.00017999,2]
[406519928,1771902642059,-500.0,0.00017999,2]
[406519929,1771902642070,-500.0,0.00017999,2]
[406519930,1771902642080,-430.45151794,0.00017999,2]
[406519931,1771902642090,-137151.37430601,0.00018,2]
[406519932,1771902642099,-150558.86770606,0.00018,2]
[406519933,1771902642108,-163940.52144364,0.00018,2]
[406519934,1771902642119,-298.35857336,0.00018021,2]
[406519935,1771902642128,-636.0,0.00018063,2]
[406519936,1771902642138,-1385.0,0.00018063,2]
[406519937,1771902642147,-249.208,0.00018063,2]
[406519938,1771902642156,-500.0,0.000182,2]
[406519939,1771902642165,-600.0,0.00018359,2]
[406519940,1771902642175,-10000.0,0.000185,2]
[406519941,1771902642184,-2603.49,0.00019,2]
[406519942,1771902642193,-21250.00806169,0.00019,2]
[406519943,1771902642203,-3225.00913569,0.00019009,2]
[406519944,1771902642212,-511.5765,0.00019178,2]
[406519945,1771902642221,-543.723649,0.00019178,2]
[406519946,1771902642230,-543.723649,0.00019178,2]
[406519947,1771902642239,-543.723649,0.00019178,2]
[406519948,1771902642249,-543.723649,0.00019178,2]
[406519949,1771902642258,-543.723649,0.00019178,2]
[406519950,1771902642267,-543.723649,0.00019178,2]
[406519951,1771902642276,-543.723649,0.00019178,2]
[406519952,1771902642285,-543.723649,0.00019178,2]
[406519953,1771902642294,-543.723649,0.00019178,2]
[406519954,1771902642303,-543.723649,0.00019178,2]
[406519955,1771902642312,-543.723649,0.00019178,2]
[406519956,1771902642321,-543.723649,0.00019178,2]
[406519957,1771902642330,-543.723649,0.00019178,2]
[406519958,1771902642339,-543.723649,0.00019178,2]
[406519959,1771902642347,-543.723649,0.00019178,2]
[406519960,1771902642356,-543.723649,0.00019178,2]
[406519961,1771902642365,-543.723649,0.00019178,2]
[406519962,1771902642374,-543.723649,0.00019178,2]
[406519963,1771902642383,-543.723649,0.00019178,2]
[406519964,1771902642392,-543.723656,0.00019178,2]
[406519965,1771902642401,-460.818141,0.00019178,2]
[406519966,1771902642410,-460.818141,0.00019178,2]
[406519967,1771902642421,-460.818141,0.00019178,2]
[406519968,1771902642430,-460.818141,0.00019178,2]
[406519969,1771902642440,-460.818141,0.00019178,2]
[406519970,1771902642449,-460.818141,0.00019178,2]
[406519971,1771902642458,-460.818141,0.00019178,2]
[406519972,1771902642468,-460.818141,0.00019178,2]
[406519973,1771902642477,-460.818141,0.00019178,2]
[406519975,1771902642486,-460.818141,0.00019178,2]
[406519977,1771902642496,-460.818141,0.00019178,2]
[406519979,1771902642505,-460.818141,0.00019178,2]
[406519980,1771902642515,-460.818141,0.00019178,2]
[406519981,1771902642525,-460.818141,0.00019178,2]
[406519982,1771902642534,-460.818141,0.00019178,2]
[406519983,1771902642543,-460.818141,0.00019178,2]
[406519984,1771902642552,-460.818141,0.00019178,2]
[406519985,1771902642561,-460.818141,0.00019178,2]
[406519986,1771902642570,-460.818141,0.00019178,2]
[406519987,1771902642580,-460.818134,0.00019178,2]
[406519990,1771902642655,-2456.7578384,0.00019191,2]
[406519991,1771902642664,-319.5250991,0.00019584,2]
[406519992,1771902642674,-183.839679,0.00019635,2]
[406519993,1771902642683,-548.1767699,0.00019673,2]
[406519994,1771902642693,-345.90862939,0.00019827,7]
[406519995,1771902642702,-5429.15228786,0.0002,2]
[406519996,1771902642711,-206.6466994,0.0002,2]
[406519997,1771902642720,-720.0,0.00020195,2]
[406519999,1771902642729,-151.0,0.000203,3]
[406520001,1771902642738,-1869.5534,0.00020548,2]
[406520003,1771902642746,-636.0,0.00021063,2]
[406520005,1771902642755,-1385.0,0.00021063,2]
[406520007,1771902642764,-151.0,0.000213,4]
[406520008,1771902642774,-1000.0,0.000217,2]
[406520010,1771902642783,-2008.70229729,0.00021917,2]
[406520011,1771902642792,-151.0,0.00021918,2]
[406520012,1771902642801,-151.0,0.00021918,2]
[406520013,1771902642810,-151.0,0.00021918,2]
[406520014,1771902642820,-151.0,0.00021918,2]
[406520015,1771902642829,-151.0,0.00021918,2]
[406520016,1771902642838,-298.470257,0.00021918,2]
[406520017,1771902642848,-150.0,0.00021918,2]
[406520018,1771902642858,-342.65,0.00021918,2]
[406520019,1771902642868,-3225.00913569,0.00021927,2]
[406520020,1771902642878,-5498.57,0.00022,2]
[406520021,1771902642889,-168.167594,0.00022037,30]
[406520022,1771902642898,-864.0,0.00022214,10]
[406520023,1771902642907,-151.0,0.000223,6]
[406520024,1771902642917,-501.959,0.00022378,2]
[406520025,1771902642926,-301.94268854,0.00022466,2]
[406520026,1771902642936,-151.0,0.000228,10]
[406520027,1771902642945,-744.3517164,0.00022885,2]
[406520028,1771902642955,-295.81,0.00023,30]
[406520029,1771902642963,-349.5,0.00023,2]
[406520030,1771902642975,-744.3517164,0.00023,3]
[406520031,1771902642985,-231.0,0.00023,7]
[406520032,1771902642993,-372.95,0.00023218,8]
[406520033,1771902643003,-151.0,0.000233,8]
[406520034,1771902643012,-151.0,0.000238,7]
[406520035,1771902643021,-636.0,0.00024063,2]
[406520036,1771902643031,-1385.0,0.00024063,2]
[406520037,1771902643042,-151.0,0.000242,8]
[406520038,1771902643061,-183.839679,0.00024201,2]
[406520039,1771902643071,-1000.0,0.00024436,10]
[406520040,1771902643084,-151.0,0.000246,6]
[406520041,1771902643092,-9318.56143313,0.0002465,2]
[406520042,1771902643102,-248.4666723,0.00024658,2]
[406520043,1771902643111,-151.0,0.000247,10]
[406520044,1771902643120,-8690.23534402,0.000248,2]
[406520045,1771902643129,-3225.00913569,0.00024846,2]
[406520046,1771902643138,-28077.5112035,0.000249,2]
[406520047,1771902643148,-5498.57,0.000249,2]
[406520048,1771902643158,-5000.0,0.00025,2]
[406520049,1771902643167,-1006.0,0.00025,4]
[406520050,1771902643177,-1477.76374755,0.00025208,2]
[406520051,1771902643186,-457.38080758,0.00025208,2]
[406520052,1771902643195,-1071.20312395,0.00025218,2]
[406520053,1771902643204,-61598.09584037,0.00025218,2]
[406520054,1771902643213,-24189.34967358,0.00025228,2]
[406520057,1771902645836,-2168.13753306,0.00025228,2]
[406520058,1771902645861,-2239.07457887,0.00025228,2]
[406520061,1771902790614,242.7698,0.00042461,120]
[406520062,1771902849914,151.0,0.00042404,120]
[406520063,1771902850199,151.0,0.00042404,120]
[406520064,1771902850475,151.0,0.00042404,120]
[406520065,1771902850754,151.0,0.00042404,120]
[406520066,1771902851098,151.0,0.00042404,120]
[406520067,1771902851348,151.0,0.00042404,120]
[406520068,1771902851639,151.0,0.00042404,120]
[406520069,1771902851923,151.0,0.00042404,120]
[406520070,1771902852213,151.0,0.00042404,120]
[406520071,1771902852540,151.0,0.00042404,120]
[406520072,1771902852866,151.0,0.00042404,120]
[406520073,1771902853188,151.0,0.00042404,120]
[406520074,1771902853494,202.928983,0.00042404,120]
[406520084,1771903559247,-579.0,0.00011285,2]
[406520085,1771903559268,-618.21303603,0.00011285,2]
[406520086,1771903561954,150.0,0.00042407,10]
[406520110,1771903649488,322241.30322234,0.00042407,10]
[406520112,1771903652081,-255.27899258,0.00011285,2]
[406520117,1771903825761,-732.43028706,0.00010949,2]